fUST/lending_fUST_20250607
["ID","MTS","AMOUNT","RATE_DAILY","PERIOD"]
[364743603,1749225602934,300.0,0.00018999,2]
[364743604,1749225636839,161.3491366,0.00018978,2]
[364743605,1749225649445,300.0,0.00018999,2]
[364743608,1749225664224,300.0,0.00018999,2]
[364743609,1749225674490,150.0,0.00016725,2]
[364743610,1749225674918,150.0,0.00017521,2]
[364743612,1749225691061,200.0,0.00024328,120]
[364743613,1749225699340,245.15666785,0.0001843,2]
[364743615,1749225723494,300.0,0.00018999,2]
[364743616,1749225725089,1000.0,0.00024553,120]
[364743619,1749225739179,150.0,0.00016892,2]
[364743620,1749225743470,1000.0,0.00024658,120]
[364743621,1749225751382,200.0,0.00023541,120]
[364743623,1749225776918,1000.0,0.00024649,120]
[364743625,1749225811384,200.0,0.00024167,120]
[364743626,1749225813917,1000.0,0.00024658,120]
[364743627,1749225842147,161.34913659,0.00018978,2]
[364743628,1749225842345,300.0,0.00018999,2]
[364743629,1749225867224,150.0,0.00016028,2]
[364743630,1749225867998,150.0,0.00016792,2]
[364743631,1749225871329,200.0,0.00023774,120]
[364743632,1749225873844,158.346914,0.00018726,2]
[364743634,1749225902860,300.0,0.00018999,2]
[364743635,1749225902992,300.0,0.00018999,2]
[364743636,1749225905984,473.0,0.00018999,2]
[364743637,1749225909609,533.76850834,0.00018999,2]
[364743644,1749225933628,150.0,0.00016022,2]
[364743645,1749225934571,150.0,0.00016785,2]
[364743646,1749225948869,300.0,0.00018999,2]
[364743647,1749225963081,207.89212865,0.00018999,2]
[364743648,1749225963107,92.10787135,0.00018999,2]
[364743649,1749225964014,300.0,0.00018999,2]
[364743650,1749225999160,150.0,0.00015998,2]
[364743651,1749226000860,648.7844809,0.0001843,2]
[364743652,1749226001287,324.39224045,0.00018603,2]
[364743653,1749226002608,220.7799274,0.0001855,2]
[364743654,1749226022876,300.0,0.00018999,2]
[364743655,1749226028143,-988.20719395,0.00019,2]
[364743656,1749226037905,155.76660605,0.00018978,2]
[364743657,1749226042111,-5457.3203961,0.00019,2]
[364743658,1749226046088,-6654.79825039,0.00019,2]
[364743659,1749226051708,200.0,0.00023633,120]
[364743660,1749226064487,150.0,0.00015784,2]
[364743661,1749226064930,150.0,0.00016536,2]
[364743662,1749226065448,150.0,0.00017288,2]
[364743663,1749226065875,150.0,0.00018039,2]
[364743664,1749226066323,150.0,0.00018791,2]
[364743665,1749226082322,300.0,0.00018999,2]
[364743666,1749226111302,200.0,0.00023852,120]
[364743669,1749226132578,150.0,0.00016712,2]
[364743670,1749226132982,150.0,0.00017508,2]
[364743671,1749226143430,300.0,0.00018999,2]
[364743672,1749226144023,747.3119481,0.00018614,2]
[364743673,1749226171388,200.0,0.00023687,120]
[364743674,1749226197120,150.0,0.00016593,2]
[364743675,1749226202489,300.0,0.00018999,2]
[364743676,1749226231333,200.0,0.00023854,120]
[364743752,1749226232256,-804.79,0.00019,2]
[364743815,1749226237973,-13283.27442415,0.00019,2]
[364743816,1749226237985,-2099.85863507,0.00019,2]
[364743817,1749226238004,-416.351307,0.00019,2]
[364743818,1749226238084,-21084.54309419,0.00019,2]
[364743819,1749226238094,-440.0,0.00019178,2]
[364743820,1749226238107,-440.0,0.00019178,2]
[364743821,1749226238116,-440.0,0.00019178,2]
[364743822,1749226238127,-430.0,0.00019178,2]
[364743823,1749226238136,-430.0,0.00019178,2]
[364743824,1749226238146,-430.0,0.00019178,2]
[364743825,1749226238156,-440.0,0.00019178,2]
[364743826,1749226238165,-440.0,0.00019178,2]
[364743827,1749226238175,-440.0,0.00019178,2]
[364743828,1749226238184,-440.0,0.00019178,2]
[364743829,1749226238194,-253.22381847,0.00019178,2]
[364743830,1749226238203,-372.22530489,0.00019178,2]
[364743831,1749226238213,-440.0,0.00019178,2]
[364743832,1749226238222,-433.64732835,0.00019178,2]
[364743833,1749226238232,-325.78620553,0.00019178,2]
[364743834,1749226238243,-440.0,0.00019178,2]
[364743835,1749226238252,-440.0,0.00019178,2]
[364743836,1749226238262,-440.0,0.00019178,2]
[364743837,1749226238272,-440.0,0.00019178,2]
[364743838,1749226238281,-440.0,0.00019178,2]
[364743839,1749226238291,-440.0,0.00019178,2]
[364743840,1749226238300,-621.43,0.00019178,2]
[364743841,1749226238310,-440.0,0.00019178,2]
[364743842,1749226238320,-440.0,0.00019178,2]
[364743843,1749226238329,-367.01542089,0.00019178,2]
[364743844,1749226238340,-440.0,0.00019178,2]
[364743845,1749226238349,-440.0,0.00019178,2]
[364743846,1749226238358,-440.0,0.00019178,2]
[364743847,1749226238367,-440.0,0.00019178,2]
[364743848,1749226238377,-440.0,0.00019178,2]
[364743849,1749226238387,-440.0,0.00019178,2]
[364743850,1749226238398,-430.0,0.00019178,2]
[364743851,1749226238408,-440.0,0.00019178,2]
[364743852,1749226238418,-440.0,0.00019178,2]
[364743853,1749226238429,-476.14927129,0.00019178,2]
[364743854,1749226238439,-390.0,0.00019178,2]
[364743855,1749226238449,-334.02780532,0.00019178,2]
[364743856,1749226238458,-430.0,0.00019178,2]
[364743857,1749226238469,-440.0,0.00019178,2]
[364743858,1749226238478,-440.0,0.00019178,2]
[364743859,1749226238488,-440.0,0.00019178,2]
[364743860,1749226238497,-440.0,0.00019178,2]
[364743861,1749226238507,-440.0,0.00019178,2]
[364743862,1749226238516,-350.36734478,0.00019178,2]
[364743863,1749226238526,-440.0,0.00019178,2]
[364743864,1749226238536,-440.0,0.00019178,2]
[364743865,1749226238545,-440.0,0.00019178,2]
[364743866,1749226238555,-440.0,0.00019178,2]
[364743867,1749226238565,-440.0,0.00019178,2]
[364743868,1749226238574,-440.0,0.00019178,2]
[364743869,1749226238584,-440.0,0.00019178,2]
[364743870,1749226238594,-440.0,0.00019178,2]
[364743871,1749226238604,-376.54163954,0.00019178,2]
[364743872,1749226238614,-440.0,0.00019178,2]
[364743873,1749226238623,-440.0,0.00019178,2]
[364743874,1749226238633,-440.0,0.00019178,2]
[364743875,1749226238643,-440.0,0.00019178,2]
[364743876,1749226238652,-1095.28,0.00019178,2]
[364743877,1749226238662,-1105.89,0.00019178,2]
[364743878,1749226238672,-440.0,0.00019178,2]
[364743879,1749226238681,-165.842008,0.00019178,2]
[364743880,1749226238691,-331.356441,0.00019178,2]
[364743881,1749226238701,-160.47140234,0.00019352,2]
[364743882,1749226238711,-285.93648666,0.000194,2]
[364743883,1749226238721,-440.0,0.00019452,2]
[364743884,1749226238731,-440.0,0.00019452,2]
[364743885,1749226238741,-153.96143629,0.00019452,2]
[364743886,1749226238750,-458.97826675,0.00019452,2]
[364743887,1749226238760,-440.0,0.00019452,2]
[364743888,1749226238770,-440.0,0.00019452,2]
[364743889,1749226238779,-474.75406173,0.00019452,2]
[364743890,1749226238790,-440.0,0.00019452,2]
[364743891,1749226238800,-621.43,0.00019452,2]
[364743892,1749226238809,-440.0,0.00019452,2]
[364743893,1749226238820,-440.0,0.00019452,2]
[364743894,1749226238830,-440.0,0.00019452,2]
[364743895,1749226238839,-440.0,0.00019452,2]
[364743896,1749226238849,-241.76036688,0.00019452,2]
[364743897,1749226238858,-440.0,0.00019452,2]
[364743898,1749226238868,-440.0,0.00019452,2]
[364743899,1749226238877,-440.0,0.00019452,2]
[364743900,1749226238887,-161.65271955,0.00019452,2]
[364743901,1749226238896,-440.0,0.00019452,2]
[364743902,1749226238906,-1095.28,0.00019452,2]
[364743903,1749226238916,-1105.89,0.00019452,2]
[364743904,1749226238925,-440.0,0.00019452,2]
[364743905,1749226238935,-200.0,0.00019556,2]
[364743906,1749226238944,-406.31,0.00019726,2]
[364743907,1749226238954,-440.0,0.00019726,2]
[364743908,1749226238963,-440.0,0.00019726,2]
[364743909,1749226238973,-440.0,0.00019726,2]
[364743910,1749226238982,-634.33441057,0.00019726,2]
[364743911,1749226238992,-440.0,0.00019726,2]
[364743912,1749226239001,-621.43,0.00019726,2]
[364743913,1749226239011,-440.0,0.00019726,2]
[364743914,1749226239020,-440.0,0.00019726,2]
[364743915,1749226239030,-150.34863047,0.00019726,2]
[364743916,1749226239039,-440.0,0.00019726,2]
[364743917,1749226239049,-440.0,0.00019726,2]
[364743918,1749226239058,-440.0,0.00019726,2]
[364743919,1749226239069,-440.0,0.00019726,2]
[364743920,1749226239079,-440.0,0.00019726,2]
[364743921,1749226239088,-1095.28,0.00019726,2]
[364743922,1749226239097,-1105.89,0.00019726,2]
[364743923,1749226239109,-440.0,0.00019726,2]
[364743924,1749226239119,-503.8046251,0.000198,2]
[364743925,1749226239128,-381.80981149,0.000199,2]
[364743926,1749226239138,-500.0,0.00019999,2]
[364743927,1749226239148,-241.60048969,0.00019999,2]
[364743928,1749226239158,-440.0,0.0002,2]
[364743929,1749226239168,-330.48382671,0.0002,2]
[364743930,1749226239177,-440.0,0.0002,2]
[364743931,1749226239187,-549.27948655,0.0002,2]
[364743932,1749226239196,-621.43,0.0002,2]
[364743933,1749226239205,-440.0,0.0002,2]
[364743934,1749226239214,-440.0,0.0002,2]
[364743935,1749226239224,-440.0,0.0002,2]
[364743936,1749226239233,-440.0,0.0002,2]
[364743937,1749226239242,-440.0,0.0002,2]
[364743938,1749226239252,-440.0,0.0002,2]
[364743939,1749226239261,-440.0,0.0002,2]
[364743940,1749226239271,-1095.28,0.0002,2]
[364743941,1749226239281,-1105.89,0.0002,2]
[364743942,1749226239291,-440.0,0.0002,2]
[364743943,1749226239301,-381.8098113,0.00020072,2]
[364743944,1749226239310,-185.708,0.00020134,2]
[364743945,1749226239321,-356.0,0.00020143,2]
[364743946,1749226239330,-381.8098113,0.00020245,2]
[364743947,1749226239341,-440.0,0.00020273,2]
[364743948,1749226239350,-440.0,0.00020273,2]
[364743949,1749226239360,-621.43,0.00020273,2]
[364743950,1749226239369,-440.0,0.00020273,2]
[364743951,1749226239379,-440.0,0.00020273,2]
[364743952,1749226239392,-440.0,0.00020273,2]
[364743953,1749226239401,-440.0,0.00020273,2]
[364743954,1749226239411,-440.0,0.00020273,2]
[364743955,1749226239420,-440.0,0.00020273,2]
[364743957,1749226239430,-440.0,0.00020273,2]
[364743958,1749226239440,-1095.28,0.00020273,2]
[364743959,1749226239450,-1105.89,0.00020273,2]
[364743960,1749226239460,-440.0,0.00020273,2]
[364743961,1749226239469,-151.0,0.00020274,2]
[364743962,1749226239479,-151.0,0.00020301,2]
[364743963,1749226239488,-381.8098113,0.00020417,3]
[364743964,1749226239499,-207.4,0.00020437,2]
[364743965,1749226239518,-500.0,0.00020437,2]
[364743966,1749226239538,-500.0,0.00020437,2]
[364743967,1749226239553,-500.0,0.00020437,2]
[364743969,1749226239563,-500.0,0.00020437,2]
[364743971,1749226239573,-500.0,0.00020437,2]
[364743972,1749226239583,-500.0,0.00020437,2]
[364743974,1749226239593,-500.0,0.00020437,2]
[364743975,1749226239603,-500.0,0.00020437,2]
[364743976,1749226239612,-500.0,0.00020437,2]
[364743977,1749226239622,-500.0,0.00020437,2]
[364743978,1749226239632,-500.0,0.00020437,2]
[364743979,1749226239642,-500.0,0.00020437,2]
[364743980,1749226239651,-500.0,0.00020437,2]
[364743981,1749226239661,-500.0,0.00020437,2]
[364743982,1749226239670,-500.0,0.00020437,2]
[364743983,1749226239680,-551.46,0.00020512,2]
[364743985,1749226239690,-440.0,0.00020512,2]
[364743986,1749226239699,-440.0,0.00020512,2]
[364743987,1749226239709,-440.0,0.00020512,2]
[364743988,1749226239719,-440.0,0.00020512,2]
[364743989,1749226239729,-771.4,0.00020512,2]
[364743990,1749226239739,-440.0,0.00020512,2]
[364743991,1749226239748,-275.07,0.00020547,2]
[364743992,1749226239758,-440.0,0.00020547,2]
[364743993,1749226239767,-500.0,0.00020547,2]
[364743994,1749226239777,-621.43,0.00020547,2]
[364743995,1749226239787,-440.0,0.00020547,2]
[364743996,1749226239797,-440.0,0.00020547,2]
[364743997,1749226239807,-440.0,0.00020547,2]
[364743999,1749226239817,-440.0,0.00020547,2]
[364744001,1749226239827,-440.0,0.00020547,2]
[364744003,1749226239837,-440.0,0.00020547,2]
[364744005,1749226239847,-440.0,0.00020547,2]
[364744007,1749226239856,-1095.28,0.00020547,2]
[364744009,1749226239866,-1105.89,0.00020547,2]
[364744011,1749226239875,-440.0,0.00020547,2]
[364744012,1749226239885,-381.8098113,0.0002059,3]
[364744013,1749226239900,-160.0,0.00020601,2]
[364744015,1749226239914,-212.976918,0.00020601,2]
[364744016,1749226239924,-160.0,0.00020601,2]
[364744017,1749226239934,-160.0,0.00020601,2]
[364744018,1749226239943,-160.0,0.00020603,2]
[364744019,1749226239953,-423.83542519,0.00020603,2]
[364744020,1749226239963,-229.52673067,0.00020603,2]
[364744021,1749226239973,-842.5625,0.00020603,2]
[364744022,1749226239982,-160.0,0.00020603,2]
[364744023,1749226239992,-834.50537533,0.00020603,2]
[364744024,1749226240001,-500.0,0.00020627,2]
[364744025,1749226240011,-500.0,0.00020689,2]
[364744026,1749226240020,-420.0,0.00020709,2]
[364744027,1749226240029,-420.0,0.00020709,2]
[364744028,1749226240039,-900.0,0.00020762,2]
[364744029,1749226240049,-381.8098113,0.00020762,3]
[364744030,1749226240059,-551.46,0.00020786,2]
[364744031,1749226240070,-440.0,0.00020786,2]
[364744032,1749226240080,-440.0,0.00020786,2]
[364744033,1749226240090,-440.0,0.00020786,2]
[364744034,1749226240099,-440.0,0.00020786,2]
[364744035,1749226240109,-771.4,0.00020786,2]
[364744036,1749226240118,-440.0,0.00020786,2]
[364744038,1749226240128,-500.0,0.00020795,2]
[364744039,1749226240137,-500.0,0.00020795,2]
[364744040,1749226240146,-572.53673651,0.00020821,2]
[364744041,1749226240156,-621.43,0.00020821,2]
[364744042,1749226240165,-440.0,0.00020821,2]
[364744043,1749226240175,-344.25639651,0.00020821,2]
[364744044,1749226240184,-573.4735329,0.00020821,2]
[364744045,1749226240193,-440.0,0.00020821,2]
[364744046,1749226240203,-440.0,0.00020821,2]
[364744047,1749226240212,-440.0,0.00020821,2]
[364744048,1749226240221,-440.0,0.00020821,2]
[364744049,1749226240230,-1095.28,0.00020821,2]
[364744050,1749226240240,-1105.89,0.00020821,2]
[364744051,1749226240249,-440.0,0.00020821,2]
[364744052,1749226240258,-381.8098113,0.00020934,4]
[364744053,1749226240267,-551.46,0.0002106,2]
[364744054,1749226240277,-440.0,0.0002106,2]
[364744055,1749226240286,-440.0,0.0002106,2]
[364744056,1749226240295,-440.0,0.0002106,2]
[364744057,1749226240305,-440.0,0.0002106,2]
[364744058,1749226240315,-771.4,0.0002106,2]
[364744059,1749226240324,-440.0,0.0002106,2]
[364744060,1749226240333,-222.13,0.00021085,3]
[364744061,1749226240343,-500.0,0.00021095,3]
[364744062,1749226240352,-621.43,0.00021095,2]
[364744063,1749226240362,-440.0,0.00021095,2]
[364744064,1749226240371,-440.0,0.00021095,2]
[364744065,1749226240381,-440.0,0.00021095,2]
[364744066,1749226240395,-440.0,0.00021095,2]
[364744067,1749226240404,-440.0,0.00021095,2]
[364744068,1749226240414,-1095.28,0.00021095,2]
[364744069,1749226240423,-1105.89,0.00021095,2]
[364744070,1749226240433,-440.0,0.00021095,2]
[364744071,1749226240443,-381.8098113,0.00021107,4]
[364744072,1749226240453,-381.8098113,0.00021279,5]
[364744074,1749226240462,-3000.0,0.000213,2]
[364744076,1749226240473,-3000.0,0.0002131,2]
[364744077,1749226240483,-3000.0,0.0002132,2]
[364744078,1749226240494,-3000.0,0.0002133,2]
[364744079,1749226240503,-551.46,0.00021334,2]
[364744080,1749226240512,-440.0,0.00021334,2]
[364744081,1749226240522,-440.0,0.00021334,2]
[364744082,1749226240532,-440.0,0.00021334,2]
[364744083,1749226240543,-440.0,0.00021334,2]
[364744084,1749226240552,-511.85680832,0.00021334,2]
[364744085,1749226240645,-259.54319168,0.00021334,2]
[364744086,1749226240655,-159.15834051,0.00021334,2]
[364744087,1749226240792,-280.84165949,0.00021334,2]
[364744088,1749226240803,-3000.0,0.0002134,2]
[364744089,1749226240814,-3000.0,0.0002135,2]
[364744090,1749226240824,-3000.0,0.0002136,2]
[364744091,1749226240834,-621.43,0.00021369,2]
[364744092,1749226240843,-440.0,0.00021369,2]
[364744093,1749226240853,-440.0,0.00021369,2]
[364744094,1749226240862,-440.0,0.00021369,2]
[364744095,1749226240871,-440.0,0.00021369,2]
[364744096,1749226240881,-440.0,0.00021369,2]
[364744097,1749226240891,-1095.28,0.00021369,2]
[364744098,1749226240900,-1105.89,0.00021369,2]
[364744099,1749226240909,-440.0,0.00021369,2]
[364744100,1749226240920,-3000.0,0.0002137,2]
[364744101,1749226240931,-3000.0,0.0002138,2]
[364744102,1749226240940,-2022.08298672,0.0002139,2]
[364744103,1749226240952,-977.91701328,0.0002139,2]
[364744104,1749226240962,-3000.0,0.000214,2]
[364744105,1749226240972,-3000.0,0.0002141,2]
[364744106,1749226240982,-3000.0,0.0002142,2]
[364744107,1749226240991,-3000.0,0.0002143,2]
[364744108,1749226241001,-3000.0,0.0002144,2]
[364744109,1749226241011,-3000.0,0.0002145,2]
[364744110,1749226241021,-381.8098113,0.00021452,5]
[364744111,1749226241030,-3000.0,0.0002146,2]
[364744112,1749226241039,-921.74372229,0.00021461,2]
[364744113,1749226241048,-3000.0,0.0002147,2]
[364744114,1749226241058,-3000.0,0.0002148,2]
[364744115,1749226241068,-3000.0,0.0002149,2]
[364744116,1749226241078,-3000.0,0.000215,2]
[364744117,1749226241088,-1409.81,0.000215,2]
[364744118,1749226241098,-3000.0,0.0002151,2]
[364744119,1749226241109,-1669.93829718,0.0002152,2]
[364744120,1749226241120,-416.49139782,0.0002152,2]
[364744121,1749226241132,-311.58,0.0002152,2]
[364744122,1749226241143,-601.990305,0.0002152,2]
[364744123,1749226241152,-3000.0,0.0002153,2]
[364744124,1749226241162,-365.62656773,0.0002154,2]
[364744125,1749226241233,502.47854005,0.000189,2]
[364744126,1749226241285,-320.17165751,0.0002154,2]
[364744145,1749226245761,638.52837723,0.00018999,2]
[364744146,1749226245950,-1146.814,0.0002154,2]
[364744147,1749226245963,-1167.38777476,0.0002154,2]
[364744148,1749226245974,-3000.0,0.0002155,2]
[364744149,1749226245986,-3000.0,0.0002156,2]
[364744150,1749226245995,-3000.0,0.0002157,2]
[364744151,1749226246005,-3000.0,0.0002158,2]
[364744152,1749226246016,-3000.0,0.0002159,2]
[364744153,1749226246026,-3000.0,0.000216,2]
[364744154,1749226246036,-551.46,0.00021608,2]
[364744156,1749226246045,-440.0,0.00021608,2]
[364744158,1749226246055,-440.0,0.00021608,2]
[364744159,1749226246064,-440.0,0.00021608,2]
[364744162,1749226246074,-440.0,0.00021608,2]
[364744165,1749226246083,-771.4,0.00021608,2]
[364744166,1749226246093,-440.0,0.00021608,2]
[364744167,1749226246102,-3000.0,0.0002161,2]
[364744168,1749226246111,-500.0,0.00021615,2]
[364744169,1749226246120,-1901.89993061,0.0002162,2]
[364744171,1749226247702,-1098.10006939,0.0002162,2]
[364744172,1749226247714,-381.8098113,0.00021624,5]
[364744173,1749226247725,-3000.0,0.0002163,2]
[364744174,1749226247736,-3000.0,0.0002164,2]
[364744175,1749226247748,-500.0,0.00021643,4]
[364744176,1749226247759,-621.43,0.00021643,2]
[364744177,1749226247770,-440.0,0.00021643,2]
[364744178,1749226247782,-238.39860008,0.00021643,2]
[364744179,1749226247793,-440.0,0.00021643,2]
[364744180,1749226247805,-440.0,0.00021643,2]
[364744181,1749226247817,-268.02464765,0.00021643,2]
[364744182,1749226261142,150.0,0.00016915,2]
[364744183,1749226265509,8456.37114024,0.00024657,120]
[364744184,1749226303015,370.6725,0.00018603,2]
[364744185,1749226303340,170.249947,0.00018868,2]
[364744186,1749226336083,-220.99594195,0.00019134,2]
[364744187,1749226336108,-300.0,0.00019177,2]
[364744188,1749226336134,-440.0,0.00019178,2]
[364744189,1749226336158,-440.0,0.00019178,2]
[364744190,1749226336182,-440.0,0.00019178,2]
[364744191,1749226336203,-400.0,0.00019178,2]
[364744192,1749226336228,-440.0,0.00019178,2]
[364744193,1749226336249,-381.91660989,0.00019178,2]
[364744194,1749226336272,-430.0,0.00019178,2]
[364744195,1749226336295,-430.0,0.00019178,2]
[364744196,1749226336320,-430.0,0.00019178,2]
[364744197,1749226336344,-440.0,0.00019178,2]
[364744198,1749226336369,-440.91717629,0.00019178,2]
[364744199,1749226336390,-323.99330728,0.00019178,2]
[364744200,1749226336413,-430.0,0.00019178,2]
[364744201,1749226336438,-440.0,0.00019178,2]
[364744202,1749226336459,-430.0,0.00019178,2]
[364744203,1749226336482,-440.0,0.00019178,2]
[364744204,1749226336508,-440.0,0.00019452,2]
[364744205,1749226336532,-440.0,0.00019452,2]
[364744206,1749226336556,-440.0,0.00019452,2]
[364744207,1749226336582,-440.0,0.00019452,2]
[364744208,1749226336604,-420.0,0.00019452,2]
[364744209,1749226336628,-440.0,0.00019452,2]
[364744210,1749226336653,-440.0,0.00019726,2]
[364744211,1749226336676,-440.0,0.00019726,2]
[364744212,1749226336700,-440.0,0.00019726,2]
[364744213,1749226336723,-440.0,0.00019726,2]
[364744214,1749226336747,-138.17696459,0.00019726,2]
[364744216,1749226351056,200.0,0.00023552,120]
[364744218,1749226401886,150.0,0.00016556,2]
[364744219,1749226402822,150.0,0.00017344,2]
[364744220,1749226403267,150.0,0.00018133,2]
[364744221,1749226403692,150.0,0.00018921,2]
[364744222,1749226410058,-204.2136669,0.00019078,2]
[364744223,1749226410080,-164.90024098,0.00019078,2]
[364744224,1749226410103,-585.14,0.00019178,2]
[364744225,1749226410128,-440.0,0.00019178,2]
[364744226,1749226410150,-442.57542213,0.00019178,2]
[364744227,1749226410172,-440.0,0.00019178,2]
[364744228,1749226410194,-336.81026059,0.00019178,2]
[364744229,1749226410218,-440.0,0.00019178,2]
[364744230,1749226410241,-440.0,0.00019178,2]
[364744231,1749226410263,-440.0,0.00019178,2]
[364744232,1749226410285,-430.0,0.00019178,2]
[364744233,1749226410307,-430.0,0.00019178,2]
[364744234,1749226410329,-152.52403429,0.00019178,2]
[364744235,1749226410352,-440.0,0.00019178,2]
[364744236,1749226410374,-430.0,0.00019178,2]
[364744237,1749226410398,-440.0,0.00019178,2]
[364744238,1749226410420,-430.0,0.00019178,2]
[364744239,1749226410445,-440.0,0.00019178,2]
[364744240,1749226410473,-432.68708399,0.00019178,2]
[364744241,1749226410496,-430.0,0.00019178,2]
[364744242,1749226410519,-430.61403169,0.00019178,2]
[364744243,1749226410547,-440.0,0.00019178,2]
[364744244,1749226410571,-440.0,0.00019178,2]
[364744245,1749226410595,-430.0,0.00019178,2]
[364744246,1749226410621,-440.0,0.00019452,2]
[364744247,1749226410644,-440.0,0.00019452,2]
[364744248,1749226410669,-420.0,0.00019452,2]
[364744249,1749226410693,-247.32850324,0.00019452,2]
[364744250,1749226410717,-420.0,0.00019452,2]
[364744251,1749226410742,-420.0,0.00019452,2]
[364744252,1749226410766,-420.0,0.00019452,2]
[364744253,1749226410792,-420.0,0.00019452,2]
[364744254,1749226410817,-63.20675619,0.00019452,2]
[364744256,1749226411697,200.0,0.00024463,120]
[364744257,1749226471272,200.0,0.00024351,120]
[364744258,1749226557875,1196.3343715,0.00018613,2]
[364744261,1749226605366,186.68980987,0.00018603,2]
[364744262,1749226644875,500.0,0.00024658,120]
[364744263,1749226659512,500.0,0.00024658,120]
[364744264,1749226671635,500.0,0.00024658,120]
[364744265,1749226686602,500.0,0.00024658,120]
[364744266,1749226708976,500.0,0.00024658,120]
[364744267,1749226767891,268.89155346,0.00018978,2]
[364744268,1749226813607,260.38,0.00024658,120]
[364744271,1749226935845,432.6808908,0.00018174,2]
[364744272,1749227075057,4011.72871731,0.00018,2]
[364744358,1749227168065,5451.25601853,0.00018175,2]
[364744359,1749227168088,4548.74398147,0.00018175,2]
[364744360,1749227189364,200.97690194,0.00018976,2]
[364744361,1749227208223,191.28831512,0.00018601,2]
[364744366,1749227254005,500.0,0.00018177,2]
[364744379,1749227403131,10000.0,0.00019,2]
[364744385,1749227407661,428.432214,0.00018177,2]
[364744410,1749227431977,-153.19585808,0.00019078,2]
[364744411,1749227431988,-183.12,0.00019168,2]
[364744413,1749227431997,-300.0,0.00019175,2]
[364744415,1749227432007,-300.0,0.00019175,2]
[364744417,1749227432017,-300.0,0.00019175,2]
[364744419,1749227432026,-300.0,0.00019175,2]
[364744421,1749227432035,-1200.0,0.00019175,2]
[364744423,1749227432046,-500.0,0.00019176,2]
[364744425,1749227432056,-500.0,0.00019176,2]
[364744427,1749227432065,-500.0,0.00019176,2]
[364744429,1749227432075,-164.9101268,0.00019176,2]
[364744431,1749227432087,-500.0,0.00019176,2]
[364744433,1749227432097,-500.0,0.00019176,2]
[364744434,1749227432107,-500.0,0.00019176,2]
[364744435,1749227432116,-321.76056075,0.00019176,2]
[364744437,1749227432126,-300.0,0.00019176,2]
[364744440,1749227432135,-16352.94045492,0.00019177,2]
[364744443,1749227432145,-430.0,0.00019178,2]
[364744446,1749227432154,-430.0,0.00019178,2]
[364744447,1749227432163,-440.0,0.00019178,2]
[364744449,1749227432173,-430.0,0.00019178,2]
[364744451,1749227432182,-440.0,0.00019178,2]
[364744453,1749227432192,-440.0,0.00019178,2]
[364744456,1749227432201,-440.0,0.00019178,2]
[364744458,1749227432211,-1145.05,0.00019178,2]